bitfinex-derivatives/quotes_ETHF0:USTF0_20251028
["timestamp","ask_amount","ask_price","bid_price","bid_amount"]
[1761617255296,0.00174917,4142.5,4142.4,3.23520366]
[1761617257203,0.3371,4142.8,4142.7,1.1719]
[1761617257405,0.3371,4142.8,4142.7,2.19953683]
[1761617258001,0.3371,4143.0,4142.9,0.2241]
[1761617258200,0.69294156,4143.0,4142.9,0.73925294]
[1761617258406,0.90354156,4143.0,4142.9,0.44315294]
[1761617260705,0.90354156,4143.0,4142.9,0.22595294]
[1761617262706,0.69294156,4143.0,4142.9,1.17373294]
[1761617264310,0.34014156,4143.0,4142.9,1.17373294]
[1761617265104,0.00304156,4143.0,4142.9,1.17373294]
[1761617265510,0.34014156,4143.0,4142.9,1.17373294]
[1761617266004,0.00304156,4143.0,4142.9,1.17373294]
[1761617266913,0.34014156,4143.0,4142.9,1.17373294]
[1761617274211,0.34014156,4143.0,4142.9,2.20136977]
[1761617279013,0.56144156,4143.0,4142.9,2.20136977]
[1761617279520,0.90354156,4143.0,4142.9,1.47078977]
[1761617279720,0.90354156,4143.0,4142.9,1.90526977]
[1761617280418,0.90354156,4143.0,4142.9,1.02948977]
[1761617281515,0.90354156,4143.0,4142.9,1.25358977]
[1761617284326,0.90354156,4143.0,4142.9,1.76708977]
[1761617284526,0.69294156,4143.0,4142.9,1.76708977]
[1761617284728,0.91804156,4143.0,4142.9,1.47078977]
[1761617285331,0.91804156,4143.0,4142.9,2.33100487]
[1761617290442,0.91804156,4143.0,4142.9,2.11380487]
[1761617291636,0.91804156,4143.0,4142.9,1.88970487]
[1761617292240,0.91804156,4143.0,4142.9,1.02948977]
[1761617293539,0.91804156,4143.0,4142.9,1.25508977]
[1761617293738,0.91804156,4143.0,4142.9,1.53509387]
[1761617294842,0.91804156,4143.0,4142.9,2.39873381]
[1761617295142,0.91804156,4143.0,4142.9,2.61423381]
[1761617299841,0.91804156,4143.0,4142.9,2.91023381]
[1761617300036,0.91804156,4143.0,4142.9,2.61423381]
[1761617300738,0.69294156,4143.0,4142.9,3.34471381]
[1761617301746,0.69294156,4143.0,4142.9,2.91023381]
[1761617301943,0.91934156,4143.0,4142.9,0.86549288]
[1761617302151,0.91934156,4143.0,4142.9,0.00185294]
[1761617306448,0.91934156,4143.0,4142.9,0.22745294]
[1761617306748,0.34014156,4143.0,4142.9,1.17343294]
[1761617306953,0.31944156,4143.0,4142.9,2.03707288]
[1761617307251,0.31944156,4143.0,4142.9,1.17343294]
[1761617307645,0.00304156,4143.0,4142.9,1.17343294]
[1761617307846,0.31944156,4143.0,4142.9,1.17343294]
[1761617310956,0.31944156,4143.0,4142.9,0.73895294]
[1761617313356,0.31944156,4143.0,4142.9,1.17343294]
[1761617315960,0.31944156,4143.0,4142.9,0.73895294]
[1761617316161,0.31944156,4143.0,4142.9,1.17343294]
[1761617317764,0.31944156,4143.0,4142.9,0.73895294]
[1761617318463,0.31944156,4143.0,4142.9,1.17343294]
[1761617319664,0.31944156,4143.0,4142.9,0.73895294]
[1761617319962,0.88534156,4143.0,4142.9,0.73895294]
[1761617320163,0.88534156,4143.0,4142.9,0.44295294]
[1761617323367,0.88534156,4143.0,4142.9,1.17363294]
[1761617323870,0.66704156,4143.0,4142.9,1.17363294]
[1761617327070,0.66704156,4143.0,4142.9,0.73915294]
[1761617330475,0.66704156,4143.0,4142.9,1.17363294]
[1761617331772,0.31944156,4143.0,4142.9,1.17363294]
[1761617331972,0.3201,4143.4,4143.3,1.18204]
[1761617332173,0.3201,4143.4,4143.3,2.48968093]
[1761617332974,0.32287492,4143.4,4143.3,2.48968093]
[1761617334077,0.00277492,4143.4,4143.3,2.48968093]
[1761617334774,0.32287492,4143.4,4143.3,2.48968093]
[1761617335073,0.32287492,4143.4,4143.3,3.78259065]
[1761617340979,0.53467492,4143.4,4143.3,3.34815065]
[1761617341170,0.3201,4143.3,4143.2,1.29290972]
[1761617341378,0.3201,4143.2,4143.1,5.71720972]
[1761617341680,0.7502,4143.2,4143.1,5.64230972]
[1761617342375,0.7502,4143.2,4143.1,1.74430972]
[1761617342777,0.3201,4143.2,4143.1,2.47496972]
[1761617343178,0.5319,4143.2,4143.1,2.47496972]
[1761617343982,0.7502,4143.2,4143.1,2.47496972]
[1761617344177,0.7502,4143.2,4143.1,2.17876972]
[1761617344378,0.7502,4143.2,4143.1,1.74430972]
[1761617345085,0.7502,4143.2,4143.1,1.31342921]
[1761617346283,0.7502,4143.2,4143.1,0.4514]
[1761617346982,0.7502,4143.2,4143.1,0.88586]
[1761617347887,0.7502,4143.2,4143.1,1.18206]
[1761617348082,0.7502,4143.2,4143.1,0.7476]
[1761617348282,0.7502,4143.2,4143.1,0.4514]
[1761617348886,0.7502,4143.2,4143.1,1.3135267]
[1761617350386,0.7502,4143.2,4143.1,0.4514]
[1761617351084,0.7502,4143.2,4143.0,1.30764093]
[1761617351290,0.3156,4143.1,4143.0,1.30764093]
[1761617351490,0.7524,4143.1,4143.0,1.53204093]
[1761617353790,0.7524,4143.1,4143.0,1.24992628]
[1761617357997,0.7524,4143.1,4143.0,1.76052628]
[1761617358198,0.7524,4143.1,4143.0,3.05427602]
[1761617358398,0.7524,4143.1,4143.0,1.76052628]
[1761617358897,0.7524,4143.1,4143.0,1.46432628]
[1761617359098,0.7524,4143.1,4143.0,2.75807602]
[1761617359299,0.7524,4143.1,4143.0,3.05427602]
[1761617360099,0.7524,4143.1,4143.0,2.75807602]
[1761617360598,0.7524,4143.1,4143.0,3.05427602]
[1761617360789,0.3156,4143.3,4143.0,2.75807602]
[1761617360989,0.7524,4143.3,4143.2,2.62344186]
[1761617361293,0.7524,4143.3,4143.2,1.46432628]
[1761617362294,0.7524,4143.3,4143.2,2.32726433]
[1761617362493,0.7524,4143.3,4143.2,1.46432628]
[1761617364002,0.7524,4143.3,4143.2,1.02552628]
[1761617364197,0.3156,4143.2,4143.0,0.86324554]
[1761617364392,0.5735,4143.0,4142.5,0.86332515]
[1761617364596,0.7524,4142.3,4142.2,1.02552628]
[1761617364896,41.5524,4142.3,4142.2,1.02552628]
[1761617365297,0.7524,4142.3,4142.2,1.02552628]
[1761617365499,0.7524,4142.3,4142.2,1.02738339]
[1761617365698,41.5524,4142.3,4142.2,1.02738339]
[1761617368994,0.4368,4141.9,4141.8,1.02552628]
[1761617369194,0.7524,4141.9,4141.8,1.02552628]
[1761617370003,0.7524,4141.9,4141.8,1.02816089]
[1761617371497,0.7524,4141.9,4141.8,0.00263461]
[1761617371806,0.7524,4140.8,4140.7,0.2244]
[1761617372000,0.7524,4140.8,4140.7,1.76052628]
[1761617372496,0.7524,4140.8,4140.7,0.735]
[1761617372696,0.7524,4140.8,4140.7,1.46669931]
[1761617373298,0.7524,4140.8,4140.7,1.76289931]
[1761617375199,0.3156,4140.8,4140.7,1.76289931]
[1761617375599,0.5349,4140.8,4140.7,1.76289931]
[1761617376101,0.7444,4140.8,4140.7,1.46669931]
[1761617376404,0.7444,4140.8,4140.7,1.76279931]
[1761617376603,0.5349,4140.8,4140.7,1.76279931]
[1761617378807,0.3198,4140.9,4140.8,0.7479]
[1761617379111,0.5391,4140.9,4140.8,0.7479]
[1761617390615,0.3198,4140.9,4140.8,1.1826]
[1761617391010,0.7487,4141.4,4141.3,0.2107]
[1761617391212,0.3204,4141.9,4141.8,0.7172]
[1761617391418,0.3204,4141.9,4141.8,1.74272628]
[1761617391619,0.5359,4141.9,4141.8,1.74272628]
[1761617392112,0.7487,4141.9,4141.8,1.74272628]
[1761617392618,0.7487,4141.9,4141.8,1.44662628]
[1761617393117,0.7487,4141.9,4141.8,1.74272628]
[1761617395322,0.3204,4141.9,4141.8,1.74272628]
[1761617395523,0.5359,4141.9,4141.8,1.74272628]
[1761617396212,0.7487,4141.9,4141.4,0.2961]
[1761617396521,0.8826,4141.5,4141.4,0.7172]
[1761617397722,0.8826,4141.5,4141.4,0.4211]
[1761617400920,0.8826,4141.5,4141.4,0.2104]
[1761617401227,0.7487,4141.3,4141.2,1.23592628]
[1761617401422,0.7487,4141.3,4141.2,2.26145256]
[1761617401624,0.7487,4141.3,4141.2,2.47215256]
[1761617401927,0.7487,4141.3,4141.2,1.74272628]
[1761617402226,0.7487,4141.3,4141.2,1.02552628]
[1761617403323,0.7487,4141.3,4141.2,1.44662628]
[1761617403628,0.7487,4141.3,4141.2,1.74272628]
[1761617405630,0.7487,4141.3,4141.2,1.44662628]
[1761617406934,0.7487,4141.3,4141.2,1.23592628]
[1761617407622,0.7487,4141.3,4141.2,1.02552628]
[1761617411430,0.7487,4141.3,4140.9,1.02552628]
[1761617411736,0.7366,4140.8,4140.7,0.00237303]
[1761617412230,41.5366,4140.8,4140.7,0.00237303]
[1761617415338,41.5366,4140.8,4140.7,0.21527303]
[1761617415836,41.5366,4140.8,4140.7,1.52436942]
[1761617420138,41.5366,4140.8,4140.7,0.00237303]
[1761617421146,41.5366,4140.8,4140.7,0.21527303]
[1761617422748,41.5366,4140.8,4140.7,0.00237303]
[1761617424755,0.7366,4140.8,4140.7,0.21527303]
[1761617426151,0.7366,4140.8,4140.7,0.00237303]
[1761617434047,0.7366,4140.8,4140.7,0.21527303]
[1761617434248,0.7366,4140.8,4140.7,0.73727303]
[1761617434543,0.7366,4140.8,4140.7,0.44087303]
[1761617434851,0.5245,4140.8,4140.7,1.17198303]
[1761617435250,0.5245,4140.8,4140.7,0.73727303]
[1761617435443,0.7503,4140.8,4140.7,0.87558303]
[1761617435649,0.7503,4140.8,4140.7,0.44087303]
[1761617435851,0.7503,4140.8,4140.7,0.00237303]
[1761617441655,1.27212414,4140.8,4140.7,0.00237303]
[1761617442649,0.95692414,4140.8,4140.4,1.28995276]
[1761617442848,0.4497,4139.8,4139.7,1.18955919]
[1761617443158,0.917,4139.5,4139.4,1.30909639]
[1761617443857,0.91975306,4139.5,4139.4,1.31099705]
[1761617449657,0.91975306,4139.5,4139.4,0.00190066]
[1761617450168,1.44059401,4139.5,4139.4,0.00190066]
[1761617452368,0.91975306,4139.5,4139.4,0.00190066]
[1761617458368,0.1266,4139.0,4138.6,1.30909639]
[1761617458668,0.5763,4138.5,4137.8,0.73371]
[1761617458867,0.5763,4138.5,4137.9,2.48260639]
[1761617458868,0.5646,4138.0,4137.9,2.48260639]
[1761617459068,41.3646,4138.0,4137.9,2.48260639]
[1761617459269,41.4912,4138.0,4137.9,2.04759639]
[1761617459464,0.6912,4138.0,4137.9,2.05025468]
[1761617460368,0.917,4138.0,4137.9,0.00265829]
[1761617461475,0.7904,4137.1,4137.0,0.2142]
[1761617461670,0.917,4137.0,4136.9,1.30909639]
[1761617462672,0.917,4137.0,4136.9,1.3118924]
[1761617463272,0.917,4137.0,4136.9,0.00279601]
[1761617463772,41.717,4137.0,4136.9,0.00279601]
[1761617465667,41.3763,4137.0,4135.6,0.5258]
[1761617465976,0.7561,4135.7,4135.6,1.76419639]
[1761617466276,0.7561,4135.7,4135.6,2.06299639]
[1761617466776,0.3443,4135.1,4135.0,0.5236]
[1761617467077,0.5645,4135.1,4135.0,2.05097238]
[1761617468273,0.7739,4135.1,4135.0,0.44307599]
[1761617468576,0.7739,4135.1,4135.0,0.74187599]
[1761617468967,0.7739,4135.1,4135.0,0.44307599]
[1761617469773,0.7739,4135.1,4135.0,0.22667599]
[1761617470873,0.7739,4135.1,4135.0,0.44307599]
[1761617471578,0.7739,4135.1,4135.0,0.00187599]
[1761617472577,41.5739,4135.1,4135.0,0.00187599]
[1761617475479,0.4795,4134.0,4133.9,1.53389639]
[1761617475670,0.9091,4134.0,4133.9,1.53389639]
[1761617476074,0.9091,4134.0,4133.9,1.75029639]
[1761617476481,0.9091,4134.0,4133.9,1.75214053]
[1761617477676,0.9091,4134.0,4133.9,1.47315465]
[1761617478581,0.9091,4134.0,4133.9,0.44304414]
[1761617478783,0.9091,4134.0,4133.9,1.47315465]
[1761617481481,0.9091,4134.0,4133.9,0.74184414]
[1761617481678,0.9091,4134.0,4133.9,1.77195465]
[1761617483783,0.9091,4134.0,4133.9,0.00184414]
[1761617484087,0.9091,4134.0,4132.8,0.02419667]
[1761617484088,0.3443,4132.9,4132.8,0.02419667]
[1761617484275,0.3443,4132.9,4132.8,0.24899667]
[1761617484276,0.7739,4132.9,4132.8,0.24899667]
[1761617484682,0.7739,4132.9,4132.8,1.27910718]
[1761617484981,0.7739,4132.9,4132.8,1.28168183]
[1761617485482,41.5739,4132.9,4132.8,0.02677132]
[1761617492185,0.4296,4132.1,4132.0,1.03011051]
[1761617492484,0.6997,4131.5,4131.4,0.74]
[1761617492687,0.6997,4131.5,4131.4,1.77011051]
[1761617493291,0.70241472,4131.5,4131.4,2.20778578]
[1761617493493,0.70241472,4131.5,4131.4,1.77209578]
[1761617494192,0.91181472,4131.5,4131.4,1.25689578]
[1761617495193,0.91181472,4131.5,4131.4,1.48509578]
[1761617495387,0.69571472,4131.5,4131.4,1.78389578]
[1761617495586,0.91581472,4131.5,4131.4,1.48509578]
[1761617503500,0.91581472,4131.5,4131.4,0.00198527]
[1761617504898,41.71581472,4131.5,4131.4,0.00198527]
[1761617505102,42.23924716,4131.5,4131.4,0.00198527]
[1761617505797,0.5679,4130.1,4130.0,0.96233]
[1761617506004,0.5679,4130.1,4130.0,1.78481051]
[1761617506398,0.5679,4130.1,4130.0,1.48601051]
[1761617506399,0.788,4130.1,4130.0,1.48601051]
[1761617506706,0.788,4130.1,4130.0,1.48773689]
[1761617507406,0.788,4130.1,4130.0,0.22942638]
[1761617507805,41.588,4130.1,4130.0,0.22942638]
[1761617508406,41.588,4130.1,4130.0,1.25953689]
[1761617510404,41.588,4130.1,4130.0,1.03183689]
[1761617511700,41.588,4130.1,4130.0,0.00172638]
[1761617512708,42.11080296,4130.1,4130.0,0.00172638]
[1761617515206,42.11080296,4130.1,4128.3,0.2277]
[1761617515207,0.788,4128.8,4128.3,0.2277]
[1761617515399,0.5679,4128.4,4128.3,1.19071]
[1761617515601,0.788,4128.4,4128.3,0.4559]
[1761617515906,0.788,4127.9,4127.8,0.02422598]
[1761617516101,0.78993099,4127.9,4127.8,0.78106865]
[1761617516512,0.78993099,4127.9,4127.8,1.81117916]
[1761617517005,0.34613099,4127.9,4127.8,2.84128967]
[1761617517310,41.1442,4128.4,4128.3,0.7547]
[1761617517510,41.1442,4128.4,4128.3,1.78481051]
[1761617517814,41.1442,4128.4,4128.3,1.48601051]
[1761617518204,41.14599624,4128.4,4128.3,1.48601051]
[1761617518406,41.14599624,4128.4,4128.3,1.03011051]
[1761617519210,41.14599624,4128.4,4128.3,1.25781051]
[1761617520608,0.4438,4128.2,4128.1,1.03011051]
[1761617520816,0.788,4128.2,4128.1,1.03011051]
[1761617521312,0.788,4128.2,4128.1,1.25781051]
[1761617521907,0.788,4128.2,4128.1,1.03011051]
[1761617522306,0.788,4128.2,4127.8,0.02636865]
[1761617522307,0.1251,4128.0,4127.8,0.02636865]
[1761617522515,0.788,4127.9,4127.8,1.28417916]
[1761617523812,0.788,4127.9,4127.8,0.02636865]
[1761617524514,0.1251,4128.0,4126.7,0.2242]
[1761617524515,0.7653,4126.8,4126.7,0.2242]
[1761617524814,0.3318,4126.8,4126.7,0.7411]
[1761617525409,0.5479,4126.8,4126.7,0.74286076]
[1761617526802,40.8,4126.9,4126.8,0.2996]
[1761617527004,0.1307,4129.0,4127.5,0.3868]
[1761617527209,0.4192,4127.7,4127.2,0.2161]
[1761617527415,0.7382,4127.3,4127.2,0.2161]
[1761617528110,0.7382,4127.3,4126.8,0.2996]
[1761617528311,0.7382,4126.9,4126.8,0.2161]
[1761617528513,0.7382,4126.9,4126.8,1.24621051]
[1761617528813,0.7382,4126.9,4126.8,0.2161]
[1761617529117,0.7382,4126.8,4126.7,0.00176076]
[1761617529317,0.7382,4126.8,4126.7,0.21786076]
[1761617530413,0.7382,4126.8,4126.7,0.00176076]
[1761617530620,0.7382,4126.8,4126.7,1.03187127]
[1761617532109,0.7382,4126.8,4126.7,0.00176076]
[1761617532316,0.7382,4126.8,4126.7,0.21786076]
[1761617532918,0.7382,4126.8,4126.7,0.44666076]
[1761617533120,0.5293,4126.8,4126.7,0.74626076]
[1761617533314,0.4497,4127.0,4126.9,0.7445]
[1761617533618,0.5293,4127.4,4127.3,0.7445]
[1761617533818,0.319,4127.4,4127.3,1.77461051]
[1761617534213,0.5293,4127.4,4127.3,1.77461051]
[1761617534416,0.5293,4127.4,4127.3,1.47501051]
[1761617534616,0.7382,4127.4,4127.3,1.47501051]
[1761617535013,40.9307,4128.0,4127.8,0.4449]
[1761617535014,0.5293,4127.9,4127.8,0.4449]
[1761617535218,0.7382,4127.9,4127.8,1.47501051]
[1761617535618,0.5293,4127.9,4127.8,1.77461051]
[1761617536422,0.5293,4127.9,4127.8,1.47501051]
[1761617536618,0.5293,4127.9,4127.8,1.77461051]
[1761617536921,0.1307,4129.0,4127.8,1.77461051]
[1761617536922,0.32079624,4128.4,4128.3,0.7445]
[1761617537219,0.32079624,4128.4,4128.3,1.77461051]
[1761617537616,0.32079624,4128.4,4128.3,0.4449]
[1761617537617,0.73999624,4128.4,4128.3,0.4449]
[1761617537816,0.73999624,4128.4,4128.3,1.76188002]
[1761617538820,0.7382,4127.9,4127.8,1.53308002]
[1761617539221,0.7382,4127.9,4127.8,1.76188002]
[1761617539421,0.7382,4127.9,4127.8,2.06148002]
[1761617539718,0.7382,4127.9,4127.8,1.76188002]
[1761617542923,0.319,4128.3,4128.2,0.7445]
[1761617543225,0.00179624,4128.4,4128.3,1.18051]
[1761617544320,0.319,4129.0,4128.9,0.95165]
[1761617544526,0.5293,4129.4,4129.3,0.4449]
[1761617544825,0.7382,4129.4,4129.3,1.76188002]
[1761617545021,0.7382,4129.4,4129.3,2.49739002]
[1761617545222,0.7382,4129.4,4129.3,2.06148002]
[1761617545422,0.32203569,4129.4,4129.3,2.06148002]
[1761617546221,0.00303569,4129.4,4129.3,2.06148002]
[1761617547020,0.53233569,4129.4,4129.3,1.76188002]
[1761617547221,0.00303569,4129.4,4129.3,2.06148002]
[1761617547826,0.00303569,4129.4,4129.3,0.7445]
[1761617548023,0.32203569,4129.4,4129.3,0.7445]
[1761617548223,0.53233569,4129.4,4129.3,0.7445]
[1761617548932,0.00303569,4129.4,4129.3,0.7445]
[1761617550126,0.32203569,4129.4,4129.3,0.7445]
[1761617550326,0.53233569,4129.4,4129.3,0.7445]
[1761617550633,0.00303569,4129.4,4129.3,1.18041]
[1761617552129,0.32203569,4129.4,4129.3,1.18041]
[1761617557038,0.53233569,4129.4,4129.3,1.18041]
[1761617557439,0.00303569,4129.4,4129.3,1.18041]
[1761617559333,0.9067,4129.0,4128.9,0.2265]
[1761617559534,0.5722,4129.0,4128.6,0.2265]
[1761617559732,0.7816,4128.7,4128.6,0.2265]
[1761617559935,0.7816,4128.7,4128.6,0.4396]
[1761617560136,0.5638,4128.7,4128.6,0.7389]
[1761617560737,0.7816,4128.7,4128.6,0.4396]
[1761617561032,0.7816,4128.7,4128.6,0.2265]
[1761617561337,0.7816,4128.7,4128.6,0.4396]
[1761617561839,0.7816,4128.7,4128.6,0.87558]
[1761617562035,0.7816,4128.7,4128.6,0.4396]
[1761617562239,0.5638,4128.3,4128.2,5.15191441]
[1761617562538,0.5638,4128.3,4128.2,5.45121441]
[1761617562840,0.7816,4128.3,4128.2,5.15191441]
[1761617563337,0.7816,4128.3,4128.2,5.45121441]
[1761617563730,0.7816,4128.3,4128.2,5.15191441]
[1761617563936,0.7816,4128.3,4128.2,5.45121441]
[1761617564136,0.3345,4128.3,4128.2,5.45121441]
[1761617564534,40.8,4128.9,4128.8,0.4396]
[1761617564934,41.1345,4128.9,4128.8,0.4396]
[1761617565540,41.1345,4128.9,4128.8,0.2265]
[1761617567138,41.1345,4128.9,4128.8,0.4396]
[1761617567743,41.1345,4128.9,4128.8,1.75615097]
[1761617568044,0.7816,4128.9,4128.8,1.75615097]
[1761617568434,0.7816,4128.9,4128.8,1.31655097]
[1761617569544,0.7816,4128.9,4128.8,1.75615097]
[1761617569843,0.5638,4128.9,4128.8,2.05545097]
[1761617571239,0.7816,4128.9,4128.8,1.75615097]
[1761617571635,0.7816,4128.9,4128.8,1.54305097]
[1761617571840,0.7816,4128.9,4128.8,1.31655097]
[1761617572546,0.7816,4128.9,4128.8,1.54305097]
[1761617573046,0.7816,4128.9,4128.8,1.75615097]
[1761617574647,0.7816,4128.9,4128.8,1.31655097]
[1761617574846,40.9251,4129.0,4128.4,1.31655097]
[1761617574847,0.9067,4128.5,4128.4,1.31655097]
[1761617575746,0.9067,4128.5,4128.4,1.97905097]
[1761617575945,0.9067,4128.5,4128.4,2.19215097]
[1761617576143,0.9067,4128.5,4128.4,2.49145097]
[1761617577148,0.9067,4128.5,4128.4,2.19215097]
[1761617578643,0.6889,4128.5,4128.4,2.49145097]
[1761617579542,0.5638,4128.9,4128.8,0.7389]
[1761617579748,0.7816,4128.9,4128.8,1.75615097]
[1761617580345,0.7816,4128.9,4128.8,2.05545097]
[1761617580748,0.7816,4128.9,4128.8,1.75615097]
[1761617580947,0.7816,4128.9,4128.8,2.05545097]
[1761617581139,0.3345,4128.9,4128.8,2.05545097]
[1761617581344,0.5638,4128.9,4128.8,2.05545097]
[1761617581746,0.5638,4128.9,4128.8,2.49141097]
[1761617581950,0.5638,4128.9,4128.8,2.05545097]
[1761617583251,0.7816,4128.9,4128.8,1.75615097]
[1761617583951,0.7816,4128.9,4128.8,2.49141097]
[1761617584249,0.7816,4128.9,4128.8,2.05545097]
[1761617585147,0.7816,4128.9,4128.8,1.75615097]
[1761617585349,0.7816,4128.9,4128.8,1.31655097]
[1761617585542,0.3203,4128.8,4128.7,1.31655097]
[1761617585847,0.7558,4128.8,4128.7,1.31655097]
[1761617586545,0.7558,4128.8,4128.7,2.19212097]
[1761617586746,0.7558,4128.8,4128.7,2.49152097]
[1761617587150,0.7558,4128.8,4128.7,2.19212097]
[1761617587750,41.1408,4129.0,4128.8,0.73536]
[1761617588050,0.3408,4128.8,4128.7,1.75252097]
[1761617588252,0.5584,4128.8,4128.7,2.19052097]
[1761617588441,0.7731,4128.8,4128.7,2.48992097]
[1761617588645,0.5584,4128.8,4128.7,2.48992097]
[1761617589043,0.5584,4128.8,4128.7,3.78985234]
[1761617589354,0.5584,4128.8,4128.7,2.48992097]
[1761617590050,0.34383569,4129.4,4129.3,0.2237]
[1761617590256,0.34383569,4129.4,4129.3,2.05395097]
[1761617590257,0.56143569,4129.4,4129.3,2.05395097]
[1761617590454,1.30241089,4129.4,4129.3,1.75455097]
[1761617591046,1.30241089,4129.4,4129.3,2.05395097]
[1761617591253,0.00303569,4129.4,4129.3,5.11363036]
[1761617591552,0.00303569,4129.4,4129.3,2.48986097]
[1761617591953,0.4715,4130.0,4129.7,0.2994]
[1761617592157,0.3483,4130.0,4129.9,2.05395097]
[1761617592658,41.4891,4130.0,4129.9,2.05395097]
[1761617592852,41.49188734,4130.0,4129.9,1.75757086]
[1761617593155,41.49188734,4130.0,4129.9,2.05697086]
[1761617593656,0.69188734,4130.0,4129.9,2.05697086]
[1761617594859,0.90658734,4130.0,4129.9,1.75757086]
[1761617595454,0.90658734,4130.0,4129.9,0.00301989]
[1761617595651,1.43171272,4130.0,4129.9,0.00301989]
[1761617596048,0.7731,4129.2,4129.1,1.54025097]
[1761617596958,0.7731,4129.2,4129.1,1.54210718]
[1761617597558,0.7731,4129.2,4129.1,0.00185621]
[1761617598459,1.29812279,4129.2,4129.1,0.00185621]
[1761617599458,42.09812279,4129.2,4129.1,0.00185621]
[1761617600665,42.09812279,4129.2,4129.1,1.03470907]
[1761617602761,42.09812279,4129.2,4129.1,0.00185621]
[1761617605563,42.09812279,4129.2,4129.1,1.03470907]
[1761617607768,42.09812279,4129.2,4129.1,0.00185621]
[1761617614867,42.09812279,4129.2,4127.7,1.30644505]
[1761617615067,0.3425,4127.7,4127.5,1.53174505]
[1761617615365,0.7872,4127.6,4127.2,0.43613]
[1761617615572,0.7872,4127.3,4127.2,0.2253]
[1761617615776,0.3425,4126.9,4126.7,1.30644505]
[1761617616069,0.7872,4126.8,4126.7,0.45416066]
[1761617616271,41.5872,4126.8,4126.7,0.45416066]
[1761617616573,41.5872,4126.8,4126.7,1.78671352]
[1761617617473,41.5872,4126.8,4126.7,1.48701352]
[1761617619272,41.5872,4126.8,4126.7,1.26021352]
[1761617620971,41.5872,4126.8,4126.7,1.48701352]
[1761617621268,41.5872,4126.8,4126.7,1.26021352]
[1761617621472,41.5872,4126.8,4126.7,1.48701352]
[1761617622273,41.5872,4126.8,4126.7,0.22736066]
[1761617622475,41.5872,4126.8,4126.7,1.03491352]
[1761617624071,41.5872,4126.8,4126.7,1.26021352]
[1761617624574,41.5872,4126.8,4126.7,0.00206066]
[1761617624781,41.5872,4126.8,4126.7,1.48701352]
[1761617625178,41.5872,4126.8,4126.7,1.78671352]
[1761617625974,41.5872,4126.8,4126.7,1.48701352]
[1761617626670,41.5872,4126.8,4126.7,1.03491352]
[1761617626972,41.5872,4126.8,4126.7,1.78671352]
[1761617627171,0.7872,4126.8,4126.7,1.48701352]
[1761617629882,0.5656,4126.8,4126.7,2.81956638]
[1761617630076,0.7872,4126.8,4126.7,1.78671352]
[1761617630275,0.5656,4126.8,4126.7,1.78671352]
[1761617631276,0.7872,4126.8,4126.7,0.45416066]
[1761617631483,0.7872,4126.8,4126.7,1.26021352]
[1761617635185,0.7872,4126.8,4126.7,1.48701352]
[1761617635386,0.7872,4126.8,4126.7,1.78671352]
[1761617635587,0.7872,4126.8,4126.7,1.48701352]
[1761617637989,0.7872,4126.8,4126.7,1.26021352]
[1761617640686,0.34454547,4126.9,4126.8,0.7518]
[1761617640990,0.56764547,4126.9,4126.8,0.7518]
[1761617641787,0.3425,4127.4,4127.1,0.4521]
[1761617642090,0.3425,4127.4,4127.3,1.25815286]
[1761617642091,0.7872,4127.4,4127.3,1.25815286]
[1761617642297,41.5872,4127.4,4127.3,1.03285286]
[1761617642497,41.5872,4127.4,4127.3,1.25815286]
[1761617642888,41.58916318,4127.4,4127.3,1.03285286]
[1761617643400,41.58916318,4127.4,4127.3,1.25815286]
[1761617644191,41.58916318,4127.4,4127.3,1.03285286]
[1761617645700,42.11484568,4127.4,4127.3,1.03285286]
[1761617645896,0.1285,4127.0,4126.8,5.20444505]
[1761617646096,0.7772,4126.9,4126.8,3.898]
[1761617647203,0.337,4126.8,4126.7,1.03491352]
[1761617647395,1.30290525,4126.8,4126.7,1.03491352]
[1761617647895,0.7772,4126.8,4126.7,1.47851352]
[1761617649701,0.337,4126.8,4126.7,2.81076638]
[1761617650004,0.5647,4126.8,4126.7,1.77791352]
[1761617650198,0.5647,4126.8,4126.7,2.81076638]
[1761617650600,0.5647,4126.8,4126.7,1.77791352]
[1761617651401,0.7772,4127.3,4127.2,0.4436]
[1761617651597,1.30291769,4127.3,4127.2,1.47645286]
[1761617652005,1.30291769,4127.3,4127.2,1.25665286]
[1761617653000,1.30291769,4127.3,4127.2,1.03285286]
[1761617653204,0.9057,4127.0,4126.9,1.03285286]
[1761617653702,0.9057,4127.0,4126.9,1.25665286]
[1761617655400,0.9057,4127.0,4126.9,1.47645286]
[1761617656404,0.9057,4127.0,4126.9,1.25665286]
[1761617656601,0.337,4126.9,4126.7,0.22586066]
[1761617656806,0.7772,4126.8,4126.7,0.22586066]
[1761617657600,0.7772,4126.8,4126.7,0.44566066]
[1761617657905,0.7772,4126.8,4126.7,1.47851352]
[1761617659705,0.7772,4126.8,4126.7,1.76369155]
[1761617662308,0.7772,4126.8,4126.7,2.06309155]
[1761617663798,0.7772,4126.8,4126.7,1.76369155]
[1761617666108,0.7772,4126.8,4126.7,2.49927155]
[1761617666304,40.80196318,4127.4,4126.8,0.743]
[1761617666305,0.337,4126.9,4126.8,0.743]
[1761617666605,0.4402,4127.3,4127.2,0.4436]
[1761617666804,0.96583269,4127.3,4127.2,1.54183089]
[1761617667003,1.30283269,4127.3,4127.2,1.31803089]
[1761617670411,1.30283269,4127.3,4127.2,1.76163089]
[1761617671108,1.30283269,4127.3,4127.2,2.06103089]
[1761617671310,1.30283269,4127.3,4127.2,1.76163089]
[1761617671612,1.30283269,4127.3,4127.2,1.31803089]
[1761617672010,1.30283269,4127.3,4127.2,1.54183089]
[1761617672509,1.30283269,4127.3,4127.2,1.76163089]
[1761617675713,1.30283269,4127.3,4127.2,1.54183089]
[1761617677410,1.30283269,4127.3,4127.2,1.75073089]
[1761617677615,0.00196318,4127.4,4127.3,1.15372]
[1761617677817,0.00196318,4127.4,4127.3,2.46139826]
[1761617678517,0.00196318,4127.4,4127.3,1.15372]
[1761617678715,0.3237,4127.9,4127.8,0.7176]
[1761617678919,0.3237,4127.9,4127.8,2.03563089]
[1761617679214,0.3237,4127.9,4127.8,2.47170089]
[1761617679417,0.3237,4127.9,4127.8,3.77896595]
[1761617679614,0.32555006,4127.9,4127.8,3.77896595]